[Event "Titled Tuesday Blitz January 11 2022"]
[White "Goltsev, Dmitry"]
[Black "Mickiewicz, Piotr"]
[WhiteFideId "24176710"]
[BlackFideId "1114891"]
[WhiteElo "2273"]
[BlackElo "2266"]
[Result "0-1"]
[Round "06"]
[TimeControl "180+1"]
[Date "2022.01.11"]
[WhiteClock "0:00:02"]
[BlackClock "0:00:05"]

1. e4 {[%clk 0:02:59]}  c5 {[%clk 0:02:59]} 2. Nf3 {[%clk 0:02:59]}  e6 {[%clk 0:03:00]} 3. d4 {[%clk 0:02:57]}  cxd4 {[%clk 0:03:01]} 4. Nxd4 {[%clk 0:02:58]}  Nf6 {[%clk 0:03:00]} 5. Nc3 {[%clk 0:02:58]}  d6 {[%clk 0:03:01]} 6. Be2 {[%clk 0:02:59]}  a6 {[%clk 0:03:01]} 7. O-O {[%clk 0:02:59]}  Qc7 {[%clk 0:03:01]} 8. a4 {[%clk 0:02:59]}  b6 {[%clk 0:02:59]} 9. f4 {[%clk 0:03:00]}  Bb7 {[%clk 0:02:57]} 10. Bf3 {[%clk 0:03:00]}  Nbd7 {[%clk 0:02:56]} 11. Be3 {[%clk 0:03:00]}  Be7 {[%clk 0:02:50]} 12. g4 {[%clk 0:03:00]}  h6 {[%clk 0:02:48]} 13. Qe2 {[%clk 0:02:58]}  g5 {[%clk 0:02:42]} 14. fxg5 {[%clk 0:02:57]}  hxg5 {[%clk 0:02:42]} 15. Bxg5 {[%clk 0:02:58]}  Ne5 {[%clk 0:02:41]} 16. Bg2 {[%clk 0:02:51]}  Nfxg4 {[%clk 0:02:37]} 17. Bxe7 {[%clk 0:02:48]}  Kxe7 {[%clk 0:02:24]} 18. h3 {[%clk 0:02:47]}  Qc5 {[%clk 0:02:06]} 19. Rad1 {[%clk 0:02:42]}  Nf6 {[%clk 0:01:45]} 20. Qf2 {[%clk 0:02:37]}  Rh6 {[%clk 0:01:43]} 21. Rde1 {[%clk 0:02:24]}  Rg8 {[%clk 0:01:37]} 22. Rd1 {[%clk 0:02:10]}  Nxe4 {[%clk 0:01:12]} 23. Nxe4 {[%clk 0:01:40]}  Bxe4 {[%clk 0:01:13]} 24. b4 {[%clk 0:01:41]}  Qc3 {[%clk 0:00:56]} 25. Rd3 {[%clk 0:00:31]}  Qc4 {[%clk 0:00:51]} 26. Rg3 {[%clk 0:00:23]}  Rxg3 {[%clk 0:00:48]} 27. Qxg3 {[%clk 0:00:24]}  Qxd4+ {[%clk 0:00:43]} 28. Kh2 {[%clk 0:00:24]}  Bxg2 {[%clk 0:00:29]} 29. Qxg2 {[%clk 0:00:20]}  Rg6 {[%clk 0:00:24]} 30. Qb7+ {[%clk 0:00:20]}  Kf8 {[%clk 0:00:22]} 31. a5 {[%clk 0:00:06]}  d5 {[%clk 0:00:16]} 32. Qxb6 {[%clk 0:00:06]}  Qd2+ {[%clk 0:00:13]} 33. Rf2 {[%clk 0:00:03]}  Qe1 {[%clk 0:00:09]} 34. Qc5+ {[%clk 0:00:03]}  Kg7 {[%clk 0:00:08]} 35. Rxf7+ {[%clk 0:00:01]}  Nxf7 {[%clk 0:00:04]} 36. Qd4+ {[%clk 0:00:02]}  e5 {[%clk 0:00:04]} 37. Qf2 {[%clk 0:00:01]}  Qxf2+ {[%clk 0:00:04]} 38. Kh1 {[%clk 0:00:02]}  Qg2# {[%clk 0:00:05]} 0-1


[Site "https://www.chess.com"]

[Event "Titled Tuesday Blitz January 11 2022"]
[White "Hakobyan, Aram"]
[Black "Sorokin, Aleksey"]
[WhiteFideId "13306677"]
[BlackFideId "24176460"]
[WhiteElo "2557"]
[BlackElo "2476"]
[Result "1-0"]
[Round "06"]
[TimeControl "180+1"]
[Date "2022.01.11"]
[WhiteClock "0:00:04"]
[BlackClock "0:00:03"]

1. b3 {[%clk 0:03:00]}  e5 {[%clk 0:01:51]} 2. Bb2 {[%clk 0:03:01]}  Nc6 {[%clk 0:01:48]} 3. c4 {[%clk 0:03:02]}  Nf6 {[%clk 0:01:33]} 4. Nf3 {[%clk 0:03:02]}  d5 {[%clk 0:01:31]} 5. cxd5 {[%clk 0:02:54]}  Nxd5 {[%clk 0:01:27]} 6. Nxe5 {[%clk 0:02:50]}  Nxe5 {[%clk 0:01:27]} 7. Bxe5 {[%clk 0:02:51]}  Qe7 {[%clk 0:01:27]} 8. Bb2 {[%clk 0:02:42]}  Bf5 {[%clk 0:01:26]} 9. Na3 {[%clk 0:01:55]}  O-O-O {[%clk 0:01:26]} 10. Nc4 {[%clk 0:01:56]}  Nb4 {[%clk 0:01:15]} 11. Ne3 {[%clk 0:01:56]}  Be6 {[%clk 0:01:12]} 12. Qc1 {[%clk 0:01:44]}  h5 {[%clk 0:01:07]} 13. h4 {[%clk 0:01:34]}  Rh6 {[%clk 0:01:05]} 14. g3 {[%clk 0:01:34]}  f5 {[%clk 0:01:00]} 15. Bg2 {[%clk 0:01:32]}  g5 {[%clk 0:00:56]} 16. hxg5 {[%clk 0:01:28]}  Qxg5 {[%clk 0:00:56]} 17. Be5 {[%clk 0:01:27]}  Bd6 {[%clk 0:00:55]} 18. Bxd6 {[%clk 0:01:27]}  Rxd6 {[%clk 0:00:54]} 19. Qc3 {[%clk 0:01:22]}  Nc6 {[%clk 0:00:50]} 20. Rh4 {[%clk 0:01:20]}  Ne7 {[%clk 0:00:38]} 21. Rc1 {[%clk 0:01:20]}  c6 {[%clk 0:00:37]} 22. Qa5 {[%clk 0:01:00]}  a6 {[%clk 0:00:33]} 23. Qc5 {[%clk 0:00:54]}  Kc7 {[%clk 0:00:25]} 24. Rb4 {[%clk 0:00:53]}  Bc8 {[%clk 0:00:18]} 25. Qa5+ {[%clk 0:00:47]}  Kb8 {[%clk 0:00:17]} 26. Qe5 {[%clk 0:00:32]}  Re6 {[%clk 0:00:12]} 27. Qf4 {[%clk 0:00:32]}  Qf6 {[%clk 0:00:11]} 28. Rbc4 {[%clk 0:00:09]}  Qb2 {[%clk 0:00:10]} 29. R4c2 {[%clk 0:00:09]}  Qf6 {[%clk 0:00:10]} 30. Nc4 {[%clk 0:00:09]}  Ng6 {[%clk 0:00:10]} 31. Qh6 {[%clk 0:00:09]}  Rd8 {[%clk 0:00:09]} 32. d3 {[%clk 0:00:06]}  Rh8 {[%clk 0:00:10]} 33. Qd2 {[%clk 0:00:06]}  h4 {[%clk 0:00:10]} 34. Na5 {[%clk 0:00:05]}  hxg3 {[%clk 0:00:10]} 35. Rxc6 {[%clk 0:00:04]}  gxf2+ {[%clk 0:00:06]} 36. Kf1 {[%clk 0:00:04]}  bxc6 {[%clk 0:00:04]} 37. Rxc6 {[%clk 0:00:04]}  Rxc6 {[%clk 0:00:04]} 38. Nxc6+ {[%clk 0:00:05]}  Ka8 {[%clk 0:00:04]} 39. Qb4 {[%clk 0:00:03]}  Bb7 {[%clk 0:00:04]} 40. Qb6 {[%clk 0:00:04]}  Nf4 {[%clk 0:00:03]} 41. Qa7# {[%clk 0:00:04]} 1-0


[Site "https://www.chess.com"]

[Event "Titled Tuesday Blitz January 11 2022"]
[White "Hess, Robert"]
[Black "Krivonosov, Oleg"]
[WhiteFideId "2022036"]
[BlackFideId "11600349"]
[WhiteElo "2557"]
[BlackElo "2455"]
[Result "1-0"]
[Round "06"]
[TimeControl "180+1"]
[Date "2022.01.11"]
[WhiteClock "0:00:05"]
[BlackClock "0:00:38"]

1. g3 {[%clk 0:03:00]}  Nf6 {[%clk 0:02:58]} 2. Bg2 {[%clk 0:03:01]}  d5 {[%clk 0:02:58]} 3. b3 {[%clk 0:03:01]}  e6 {[%clk 0:02:57]} 4. Bb2 {[%clk 0:03:02]}  Be7 {[%clk 0:02:57]} 5. d3 {[%clk 0:02:57]}  O-O {[%clk 0:02:56]} 6. Nd2 {[%clk 0:02:58]}  b6 {[%clk 0:02:55]} 7. e3 {[%clk 0:02:54]}  Bb7 {[%clk 0:02:55]} 8. Ne2 {[%clk 0:02:55]}  c5 {[%clk 0:02:54]} 9. O-O {[%clk 0:02:55]}  Nc6 {[%clk 0:02:54]} 10. h3 {[%clk 0:02:56]}  Qc7 {[%clk 0:02:48]} 11. f4 {[%clk 0:02:56]}  Rad8 {[%clk 0:02:44]} 12. Nf3 {[%clk 0:02:52]}  b5 {[%clk 0:02:39]} 13. g4 {[%clk 0:02:45]}  a5 {[%clk 0:02:35]} 14. a4 {[%clk 0:02:41]}  bxa4 {[%clk 0:02:32]} 15. Rxa4 {[%clk 0:02:41]}  Nd7 {[%clk 0:02:31]} 16. g5 {[%clk 0:02:33]}  f5 {[%clk 0:02:26]} 17. Qa1 {[%clk 0:01:32]}  Rf7 {[%clk 0:02:24]} 18. g6 {[%clk 0:01:15]}  hxg6 {[%clk 0:02:22]} 19. Ng5 {[%clk 0:01:16]}  Bxg5 {[%clk 0:02:16]} 20. fxg5 {[%clk 0:01:17]}  Nf8 {[%clk 0:02:10]} 21. Nf4 {[%clk 0:01:05]}  Nb4 {[%clk 0:01:58]} 22. Rf2 {[%clk 0:00:53]}  e5 {[%clk 0:01:50]} 23. Bxe5 {[%clk 0:00:50]}  Qb6 {[%clk 0:01:46]} 24. d4 {[%clk 0:00:40]}  Bc6 {[%clk 0:01:36]} 25. Rxa5 {[%clk 0:00:26]}  Nd7 {[%clk 0:01:25]} 26. dxc5 {[%clk 0:00:20]}  Qb7 {[%clk 0:01:17]} 27. Bd4 {[%clk 0:00:15]}  Nb8 {[%clk 0:01:09]} 28. c3 {[%clk 0:00:12]}  N4a6 {[%clk 0:01:08]} 29. b4 {[%clk 0:00:12]}  Nc7 {[%clk 0:01:03]} 30. Ra7 {[%clk 0:00:12]}  Qc8 {[%clk 0:01:03]} 31. Nd3 {[%clk 0:00:07]}  Nb5 {[%clk 0:00:57]} 32. Rxf7 {[%clk 0:00:08]}  Kxf7 {[%clk 0:00:57]} 33. Ne5+ {[%clk 0:00:08]}  Kg8 {[%clk 0:00:56]} 34. Nxg6 {[%clk 0:00:08]}  Qe6 {[%clk 0:00:51]} 35. Nf4 {[%clk 0:00:08]}  Qf7 {[%clk 0:00:46]} 36. g6 {[%clk 0:00:08]}  Qe7 {[%clk 0:00:45]} 37. Qd1 {[%clk 0:00:07]}  Qg5 {[%clk 0:00:38]} 38. Ne6 {[%clk 0:00:05]} 1-0


[Site "https://www.chess.com"]

[Event "Titled Tuesday Blitz January 11 2022"]
[White "Jones, Gawain C B"]
[Black "Vlassov, Nikolai"]
[WhiteFideId "409561"]
[BlackFideId "4103360"]
[WhiteElo "2657"]
[BlackElo "2407"]
[Result "1-0"]
[Round "06"]
[TimeControl "180+1"]
[Date "2022.01.11"]
[WhiteClock "0:00:02"]
[BlackClock "0:00:02"]

1. a3 {[%clk 0:03:00]}  Nf6 {[%clk 0:02:58]} 2. c4 {[%clk 0:03:00]}  g6 {[%clk 0:02:53]} 3. b4 {[%clk 0:03:00]}  Bg7 {[%clk 0:02:53]} 4. Bb2 {[%clk 0:03:00]}  O-O {[%clk 0:02:53]} 5. Nf3 {[%clk 0:03:00]}  d5 {[%clk 0:02:50]} 6. cxd5 {[%clk 0:02:59]}  Nxd5 {[%clk 0:02:49]} 7. Bxg7 {[%clk 0:02:59]}  Kxg7 {[%clk 0:02:49]} 8. e4 {[%clk 0:02:55]}  Nf6 {[%clk 0:02:37]} 9. Nc3 {[%clk 0:02:54]}  Bg4 {[%clk 0:02:34]} 10. e5 {[%clk 0:02:44]}  Nd5 {[%clk 0:02:32]} 11. h3 {[%clk 0:02:36]}  Bxf3 {[%clk 0:02:30]} 12. Qxf3 {[%clk 0:02:35]}  e6 {[%clk 0:02:26]} 13. Nxd5 {[%clk 0:02:13]}  Qxd5 {[%clk 0:02:21]} 14. Qxd5 {[%clk 0:02:06]}  exd5 {[%clk 0:02:21]} 15. d4 {[%clk 0:02:04]}  f6 {[%clk 0:02:09]} 16. Rc1 {[%clk 0:01:46]}  Nc6 {[%clk 0:01:52]} 17. b5 {[%clk 0:01:44]}  Nxd4 {[%clk 0:01:52]} 18. Rxc7+ {[%clk 0:01:44]}  Rf7 {[%clk 0:01:52]} 19. exf6+ {[%clk 0:01:44]}  Kxf6 {[%clk 0:01:53]} 20. Rxf7+ {[%clk 0:01:43]}  Kxf7 {[%clk 0:01:53]} 21. Bd3 {[%clk 0:01:37]}  Re8+ {[%clk 0:01:51]} 22. Kd2 {[%clk 0:01:37]}  Nb3+ {[%clk 0:01:51]} 23. Kc3 {[%clk 0:01:37]}  Nc5 {[%clk 0:01:51]} 24. Kd4 {[%clk 0:01:21]}  Ne6+ {[%clk 0:01:37]} 25. Kc3 {[%clk 0:01:19]}  Rc8+ {[%clk 0:01:28]} 26. Kd2 {[%clk 0:01:16]}  Nc5 {[%clk 0:01:28]} 27. Bc2 {[%clk 0:01:08]}  Ke6 {[%clk 0:01:26]} 28. Re1+ {[%clk 0:01:07]}  Kd6 {[%clk 0:01:26]} 29. f4 {[%clk 0:00:59]}  Rf8 {[%clk 0:01:16]} 30. g3 {[%clk 0:00:56]}  Ne6 {[%clk 0:01:06]} 31. Bd3 {[%clk 0:00:50]}  g5 {[%clk 0:00:57]} 32. f5 {[%clk 0:00:33]}  Nd4 {[%clk 0:00:57]} 33. Rf1 {[%clk 0:00:33]}  h5 {[%clk 0:00:57]} 34. Kc3 {[%clk 0:00:26]}  Kc5 {[%clk 0:00:53]} 35. f6 {[%clk 0:00:26]}  g4 {[%clk 0:00:39]} 36. hxg4 {[%clk 0:00:26]}  hxg4 {[%clk 0:00:40]} 37. Rf4 {[%clk 0:00:16]}  Ne6 {[%clk 0:00:26]} 38. Rf2 {[%clk 0:00:17]}  Nd4 {[%clk 0:00:26]} 39. Rf4 {[%clk 0:00:13]}  Ne6 {[%clk 0:00:25]} 40. Rxg4 {[%clk 0:00:13]}  Rxf6 {[%clk 0:00:25]} 41. a4 {[%clk 0:00:13]}  d4+ {[%clk 0:00:21]} 42. Kd2 {[%clk 0:00:11]}  Rf2+ {[%clk 0:00:20]} 43. Be2 {[%clk 0:00:10]}  Kb4 {[%clk 0:00:17]} 44. Re4 {[%clk 0:00:10]}  Rf6 {[%clk 0:00:13]} 45. Bg4 {[%clk 0:00:10]}  Nc5 {[%clk 0:00:08]} 46. Rxd4+ {[%clk 0:00:10]}  Ka5 {[%clk 0:00:08]} 47. Bd1 {[%clk 0:00:09]}  a6 {[%clk 0:00:05]} 48. bxa6 {[%clk 0:00:09]}  bxa6 {[%clk 0:00:05]} 49. g4 {[%clk 0:00:09]}  Rf2+ {[%clk 0:00:05]} 50. Ke3 {[%clk 0:00:09]}  Rg2 {[%clk 0:00:04]} 51. Rd5 {[%clk 0:00:06]}  Kb4 {[%clk 0:00:04]} 52. Bf3 {[%clk 0:00:06]}  Rg1 {[%clk 0:00:03]} 53. a5 {[%clk 0:00:06]}  Nb3 {[%clk 0:00:03]} 54. g5 {[%clk 0:00:06]}  Nxa5 {[%clk 0:00:03]} 55. Kf2 {[%clk 0:00:06]}  Rc1 {[%clk 0:00:02]} 56. g6 {[%clk 0:00:07]}  Rc7 {[%clk 0:00:02]} 57. Rg5 {[%clk 0:00:04]}  Rg7 {[%clk 0:00:02]} 58. Ke3 {[%clk 0:00:04]}  Nc4+ {[%clk 0:00:03]} 59. Kd4 {[%clk 0:00:04]}  Nd6 {[%clk 0:00:02]} 60. Kd5 {[%clk 0:00:03]}  Ne8 {[%clk 0:00:01]} 61. Ke6 {[%clk 0:00:03]}  a5 {[%clk 0:00:02]} 62. Bc6 {[%clk 0:00:02]} 1-0


[Site "https://www.chess.com"]

[Event "Titled Tuesday Blitz January 11 2022"]
[White "Kevlishvili, Robby"]
[Black "Shimanov, Aleksandr"]
[WhiteFideId "1040634"]
[BlackFideId "4198603"]
[WhiteElo "2584"]
[BlackElo "2636"]
[Result "1-0"]
[Round "06"]
[TimeControl "180+1"]
[Date "2022.01.11"]
[WhiteClock "0:00:02"]
[BlackClock "0:00:03"]

1. e4 {[%clk 0:03:00]}  d5 {[%clk 0:02:59]} 2. exd5 {[%clk 0:03:00]}  Qxd5 {[%clk 0:03:00]} 3. Nf3 {[%clk 0:03:00]}  Bg4 {[%clk 0:02:58]} 4. Be2 {[%clk 0:02:59]}  Nc6 {[%clk 0:02:58]} 5. d4 {[%clk 0:02:59]}  O-O-O {[%clk 0:02:56]} 6. c4 {[%clk 0:02:57]}  Qf5 {[%clk 0:02:50]} 7. Be3 {[%clk 0:02:57]}  Bxf3 {[%clk 0:02:45]} 8. Bxf3 {[%clk 0:02:57]}  Nxd4 {[%clk 0:02:44]} 9. Bg4 {[%clk 0:02:57]}  Nc2+ {[%clk 0:02:40]} 10. Qxc2 {[%clk 0:02:58]}  Qxg4 {[%clk 0:02:40]} 11. O-O {[%clk 0:02:58]}  Nf6 {[%clk 0:02:36]} 12. Bxa7 {[%clk 0:02:38]}  e6 {[%clk 0:02:12]} 13. Be3 {[%clk 0:02:36]}  Bd6 {[%clk 0:01:58]} 14. h3 {[%clk 0:02:35]}  Qe4 {[%clk 0:01:57]} 15. Qa4 {[%clk 0:02:35]}  Qe5 {[%clk 0:01:50]} 16. g3 {[%clk 0:02:30]}  Qf5 {[%clk 0:01:29]} 17. Nc3 {[%clk 0:02:16]}  Qxh3 {[%clk 0:01:23]} 18. Rfd1 {[%clk 0:00:49]}  Ng4 {[%clk 0:01:09]} 19. Bc5 {[%clk 0:00:43]}  b6 {[%clk 0:00:19]} 20. Rxd6 {[%clk 0:00:18]}  Rxd6 {[%clk 0:00:15]} 21. Qa8+ {[%clk 0:00:15]}  Kd7 {[%clk 0:00:15]} 22. Qa4+ {[%clk 0:00:14]}  Ke7 {[%clk 0:00:14]} 23. Bxd6+ {[%clk 0:00:14]}  cxd6 {[%clk 0:00:15]} 24. Qa7+ {[%clk 0:00:13]}  Kf6 {[%clk 0:00:15]} 25. Ne4+ {[%clk 0:00:12]}  Kg6 {[%clk 0:00:14]} 26. Qxf7+ {[%clk 0:00:12]}  Kh6 {[%clk 0:00:06]} 27. Qf3 {[%clk 0:00:06]}  Kg6 {[%clk 0:00:02]} 28. Qg2 {[%clk 0:00:05]}  Qxg2+ {[%clk 0:00:01]} 29. Kxg2 {[%clk 0:00:06]}  d5 {[%clk 0:00:02]} 30. cxd5 {[%clk 0:00:06]}  exd5 {[%clk 0:00:03]} 31. Nc3 {[%clk 0:00:06]}  Nf6 {[%clk 0:00:03]} 32. Rd1 {[%clk 0:00:06]}  Rd8 {[%clk 0:00:04]} 33. Rd4 {[%clk 0:00:06]}  Kf5 {[%clk 0:00:04]} 34. Kf3 {[%clk 0:00:06]}  Ke5 {[%clk 0:00:04]} 35. Ke3 {[%clk 0:00:06]}  h5 {[%clk 0:00:03]} 36. f4+ {[%clk 0:00:04]}  Kf5 {[%clk 0:00:03]} 37. Kf3 {[%clk 0:00:04]}  Rd6 {[%clk 0:00:03]} 38. a3 {[%clk 0:00:03]}  Ke6 {[%clk 0:00:03]} 39. Nb5 {[%clk 0:00:02]}  Rc6 {[%clk 0:00:03]} 40. Nc3 {[%clk 0:00:03]}  Rc4 {[%clk 0:00:04]} 41. Rxc4 {[%clk 0:00:02]}  dxc4 {[%clk 0:00:05]} 42. Ke3 {[%clk 0:00:03]}  Kf5 {[%clk 0:00:05]} 43. Kf3 {[%clk 0:00:03]}  Nd7 {[%clk 0:00:04]} 44. Nd5 {[%clk 0:00:03]}  Ke6 {[%clk 0:00:04]} 45. Ne3 {[%clk 0:00:03]}  b5 {[%clk 0:00:05]} 46. Ke4 {[%clk 0:00:04]}  Nc5+ {[%clk 0:00:04]} 47. Kd4 {[%clk 0:00:04]}  Nd3 {[%clk 0:00:04]} 48. b3 {[%clk 0:00:05]}  Nc1 {[%clk 0:00:03]} 49. bxc4 {[%clk 0:00:04]}  bxc4 {[%clk 0:00:04]} 50. Kxc4 {[%clk 0:00:05]}  Ne2 {[%clk 0:00:04]} 51. Nf1 {[%clk 0:00:04]}  Kf5 {[%clk 0:00:03]} 52. a4 {[%clk 0:00:04]}  Nxg3 {[%clk 0:00:02]} 53. Nxg3+ {[%clk 0:00:04]}  Kg4 {[%clk 0:00:03]} 54. Nxh5 {[%clk 0:00:02]} 1-0


[Site "https://www.chess.com"]

[Event "Titled Tuesday Blitz January 11 2022"]
[White "Kravtsiv, Martyn"]
[Black "Shkapenko, Pavel"]
[WhiteFideId "14113147"]
[BlackFideId "4151933"]
[WhiteElo "2694"]
[BlackElo "2386"]
[Result "1-0"]
[Round "06"]
[TimeControl "180+1"]
[Date "2022.01.11"]
[WhiteClock "0:00:47"]
[BlackClock "0:00:21"]

1. e4 {[%clk 0:03:00]}  e5 {[%clk 0:02:59]} 2. Nf3 {[%clk 0:03:00]}  Nc6 {[%clk 0:02:59]} 3. Nc3 {[%clk 0:02:59]}  Nf6 {[%clk 0:02:57]} 4. a4 {[%clk 0:02:59]}  Bb4 {[%clk 0:02:46]} 5. Bd3 {[%clk 0:02:58]}  O-O {[%clk 0:02:45]} 6. O-O {[%clk 0:02:57]}  Re8 {[%clk 0:02:45]} 7. Re1 {[%clk 0:02:57]}  Bf8 {[%clk 0:02:40]} 8. Nd5 {[%clk 0:02:51]}  d6 {[%clk 0:02:38]} 9. c3 {[%clk 0:02:45]}  Nxd5 {[%clk 0:02:36]} 10. exd5 {[%clk 0:02:44]}  Ne7 {[%clk 0:02:36]} 11. Bc4 {[%clk 0:02:15]}  Bg4 {[%clk 0:02:28]} 12. h3 {[%clk 0:02:12]}  Bh5 {[%clk 0:02:28]} 13. d4 {[%clk 0:02:03]}  exd4 {[%clk 0:02:24]} 14. g4 {[%clk 0:02:01]}  Bg6 {[%clk 0:02:21]} 15. Qxd4 {[%clk 0:02:00]}  c5 {[%clk 0:02:15]} 16. dxc6 {[%clk 0:01:52]}  Nxc6 {[%clk 0:02:14]} 17. Qd5 {[%clk 0:01:41]}  Rxe1+ {[%clk 0:02:10]} 18. Nxe1 {[%clk 0:01:42]}  Qe8 {[%clk 0:01:49]} 19. Be3 {[%clk 0:01:33]}  Be4 {[%clk 0:01:43]} 20. Qd2 {[%clk 0:01:29]}  Ne5 {[%clk 0:01:41]} 21. Bd5 {[%clk 0:01:30]}  Ng6 {[%clk 0:01:30]} 22. Ng2 {[%clk 0:01:24]}  Qe5 {[%clk 0:01:25]} 23. Rd1 {[%clk 0:01:18]}  Re8 {[%clk 0:01:24]} 24. Bxa7 {[%clk 0:00:59]}  Bxd5 {[%clk 0:00:46]} 25. Qxd5 {[%clk 0:00:58]}  Qf6 {[%clk 0:00:28]} 26. Be3 {[%clk 0:00:54]}  Nh4 {[%clk 0:00:24]} 27. Nxh4 {[%clk 0:00:52]}  Qxh4 {[%clk 0:00:24]} 28. Kg2 {[%clk 0:00:52]}  h5 {[%clk 0:00:20]} 29. Qxh5 {[%clk 0:00:50]}  Qxh5 {[%clk 0:00:20]} 30. gxh5 {[%clk 0:00:50]}  Re5 {[%clk 0:00:21]} 31. Rd4 {[%clk 0:00:47]}  Rxh5 {[%clk 0:00:21]} 32. Rb4 {[%clk 0:00:47]} 1-0


[Site "https://www.chess.com"]

[Event "Titled Tuesday Blitz January 11 2022"]
[White "Lenderman, Aleksandr"]
[Black "Concio, Michael Jr."]
[WhiteFideId "2021285"]
[BlackFideId "5217873"]
[WhiteElo "2651"]
[BlackElo "1896"]
[Result "1-0"]
[Round "06"]
[TimeControl "180+1"]
[Date "2022.01.11"]
[WhiteClock "0:00:45"]
[BlackClock "0:00:03"]

1. Nf3 {[%clk 0:03:00]}  Nf6 {[%clk 0:02:59]} 2. c4 {[%clk 0:03:01]}  b6 {[%clk 0:02:59]} 3. Nc3 {[%clk 0:02:59]}  Bb7 {[%clk 0:02:59]} 4. g3 {[%clk 0:02:51]}  e6 {[%clk 0:02:59]} 5. Bg2 {[%clk 0:02:51]}  Be7 {[%clk 0:02:59]} 6. O-O {[%clk 0:02:51]}  O-O {[%clk 0:02:59]} 7. Re1 {[%clk 0:02:51]}  Ne4 {[%clk 0:02:54]} 8. Nxe4 {[%clk 0:02:51]}  Bxe4 {[%clk 0:02:55]} 9. d3 {[%clk 0:02:52]}  Bb7 {[%clk 0:02:54]} 10. e4 {[%clk 0:02:51]}  d6 {[%clk 0:02:54]} 11. d4 {[%clk 0:02:52]}  Nd7 {[%clk 0:02:54]} 12. b3 {[%clk 0:02:49]}  c5 {[%clk 0:02:52]} 13. Bb2 {[%clk 0:02:49]}  Qc7 {[%clk 0:02:52]} 14. d5 {[%clk 0:02:48]}  e5 {[%clk 0:02:49]} 15. h4 {[%clk 0:02:46]}  Bf6 {[%clk 0:02:49]} 16. Bh3 {[%clk 0:02:45]}  g6 {[%clk 0:02:47]} 17. Kg2 {[%clk 0:02:44]}  Bg7 {[%clk 0:02:47]} 18. h5 {[%clk 0:02:44]}  Nf6 {[%clk 0:02:42]} 19. hxg6 {[%clk 0:02:44]}  fxg6 {[%clk 0:02:35]} 20. Be6+ {[%clk 0:02:44]}  Kh8 {[%clk 0:02:35]} 21. Qe2 {[%clk 0:02:44]}  Bc8 {[%clk 0:02:33]} 22. Bxc8 {[%clk 0:02:43]}  Qxc8 {[%clk 0:02:28]} 23. Ng5 {[%clk 0:02:44]}  Qg4 {[%clk 0:02:22]} 24. Ne6 {[%clk 0:02:38]}  Qxe2 {[%clk 0:02:20]} 25. Rxe2 {[%clk 0:02:39]}  Rf7 {[%clk 0:02:19]} 26. a4 {[%clk 0:02:36]}  a5 {[%clk 0:02:06]} 27. Rh1 {[%clk 0:02:36]}  h5 {[%clk 0:01:10]} 28. f4 {[%clk 0:02:26]}  exf4 {[%clk 0:01:00]} 29. gxf4 {[%clk 0:02:27]}  Ne8 {[%clk 0:00:45]} 30. f5 {[%clk 0:02:10]}  Bxb2 {[%clk 0:00:26]} 31. fxg6 {[%clk 0:02:09]}  Rf6 {[%clk 0:00:17]} 32. Rxh5+ {[%clk 0:02:09]}  Kg8 {[%clk 0:00:18]} 33. Rxb2 {[%clk 0:02:10]}  Rxg6+ {[%clk 0:00:18]} 34. Kf3 {[%clk 0:01:59]}  Nf6 {[%clk 0:00:18]} 35. Rh4 {[%clk 0:01:57]}  Kf7 {[%clk 0:00:17]} 36. Nf4 {[%clk 0:01:49]}  Rg5 {[%clk 0:00:16]} 37. Rbh2 {[%clk 0:01:47]}  Rag8 {[%clk 0:00:15]} 38. R4h3 {[%clk 0:01:44]}  Rg1 {[%clk 0:00:11]} 39. Nd3 {[%clk 0:01:38]}  Rb1 {[%clk 0:00:08]} 40. e5 {[%clk 0:01:34]}  Rxb3 {[%clk 0:00:08]} 41. Kf4 {[%clk 0:01:23]}  Ne8 {[%clk 0:00:05]} 42. Rh7+ {[%clk 0:01:22]}  Kf8 {[%clk 0:00:03]} 43. e6 {[%clk 0:01:20]}  Ng7 {[%clk 0:00:03]} 44. Ke4 {[%clk 0:01:16]}  Rb1 {[%clk 0:00:03]} 45. Rf2+ {[%clk 0:01:16]}  Ke8 {[%clk 0:00:02]} 46. Rf7 {[%clk 0:01:11]}  Rg1 {[%clk 0:00:03]} 47. Rb7 {[%clk 0:01:08]}  Rg4+ {[%clk 0:00:03]} 48. Nf4 {[%clk 0:01:05]}  Rf8 {[%clk 0:00:02]} 49. Rb8+ {[%clk 0:00:55]}  Ke7 {[%clk 0:00:02]} 50. Rxf8 {[%clk 0:00:55]}  Kxf8 {[%clk 0:00:03]} 51. Kf3 {[%clk 0:00:49]}  Rg5 {[%clk 0:00:04]} 52. Rh8+ {[%clk 0:00:49]}  Ke7 {[%clk 0:00:04]} 53. Rb8 {[%clk 0:00:49]}  Nf5 {[%clk 0:00:04]} 54. Rxb6 {[%clk 0:00:46]}  Rg3+ {[%clk 0:00:03]} 55. Ke4 {[%clk 0:00:45]}  Kf6 {[%clk 0:00:03]} 56. Nh5+ {[%clk 0:00:45]} 1-0


[Site "https://www.chess.com"]

[Event "Titled Tuesday Blitz January 11 2022"]
[White "Moroni, Luca Jr"]
[Black "Mokshanov, Alexey"]
[WhiteFideId "865834"]
[BlackFideId "24121657"]
[WhiteElo "2573"]
[BlackElo "2141"]
[Result "1-0"]
[Round "06"]
[TimeControl "180+1"]
[Date "2022.01.11"]
[WhiteClock "0:00:53"]
[BlackClock "0:00:09"]

1. d4 {[%clk 0:03:00]}  d5 {[%clk 0:02:59]} 2. Bf4 {[%clk 0:03:00]}  Nf6 {[%clk 0:02:59]} 3. e3 {[%clk 0:03:00]}  c5 {[%clk 0:02:59]} 4. dxc5 {[%clk 0:03:01]}  Nc6 {[%clk 0:02:57]} 5. Bb5 {[%clk 0:03:00]}  g6 {[%clk 0:02:53]} 6. c3 {[%clk 0:02:57]}  Bg7 {[%clk 0:02:53]} 7. Nd2 {[%clk 0:02:54]}  O-O {[%clk 0:02:53]} 8. Ngf3 {[%clk 0:02:54]}  Nh5 {[%clk 0:02:40]} 9. O-O {[%clk 0:02:50]}  Nxf4 {[%clk 0:02:39]} 10. exf4 {[%clk 0:02:51]}  Bf5 {[%clk 0:02:31]} 11. Nb3 {[%clk 0:02:36]}  Qc7 {[%clk 0:02:15]} 12. Qd2 {[%clk 0:02:25]}  Rad8 {[%clk 0:02:12]} 13. Rfe1 {[%clk 0:02:21]}  Be4 {[%clk 0:01:57]} 14. Nfd4 {[%clk 0:02:13]}  e5 {[%clk 0:01:57]} 15. fxe5 {[%clk 0:02:07]}  Bxe5 {[%clk 0:01:44]} 16. h3 {[%clk 0:02:04]}  Bh2+ {[%clk 0:01:31]} 17. Kh1 {[%clk 0:02:04]}  Bf4 {[%clk 0:01:28]} 18. Qd1 {[%clk 0:02:01]}  Qc8 {[%clk 0:01:15]} 19. Qg4 {[%clk 0:01:58]}  Qxg4 {[%clk 0:01:09]} 20. hxg4 {[%clk 0:01:59]}  Nxd4 {[%clk 0:01:02]} 21. cxd4 {[%clk 0:01:52]}  Bc2 {[%clk 0:00:58]} 22. Na5 {[%clk 0:01:43]}  Bd2 {[%clk 0:00:40]} 23. Nxb7 {[%clk 0:01:36]}  Bxe1 {[%clk 0:00:41]} 24. Rxe1 {[%clk 0:01:37]}  Rb8 {[%clk 0:00:36]} 25. Bc6 {[%clk 0:01:37]}  Rfc8 {[%clk 0:00:16]} 26. Bxd5 {[%clk 0:01:30]}  Ba4 {[%clk 0:00:17]} 27. b4 {[%clk 0:01:16]}  Bc6 {[%clk 0:00:16]} 28. Bxc6 {[%clk 0:01:16]}  Rxc6 {[%clk 0:00:17]} 29. b5 {[%clk 0:01:08]}  Rf6 {[%clk 0:00:11]} 30. c6 {[%clk 0:01:04]}  Kg7 {[%clk 0:00:09]} 31. d5 {[%clk 0:01:00]}  Rxb7 {[%clk 0:00:08]} 32. cxb7 {[%clk 0:00:59]}  Rb6 {[%clk 0:00:09]} 33. Re7 {[%clk 0:00:58]}  Rxb5 {[%clk 0:00:09]} 34. g5 {[%clk 0:00:53]} 1-0


[Site "https://www.chess.com"]